Workbook

Sheet 1
B1: =i(C1) -> 16777215 | C1: 1 | E1: нажимаем на кнопку один сварачиваются сетлое и темное
B2: =i(C2) -> 12900829 | C2: 2 | E2: нажимаем на кнопку два разварачивается светлое
B3: 5540500 | C3: 3 | E3: нажимаем на кнопку три разварачивается светлотемное
C4: Наименование пищевого продукта или группы пищевых продуктов | D4: единица измерения | F4: Количество продуктов в зависимости от возраста детей
E5: Цена | F5: Норма 1-3 года | G5: численность детей | I5: Длит. Прибывания. % | J5: итого: | L5: численность детей | N5: Длит. Прибывания. % | O5: итого: | Q5: численность детей | S5: Длит. Прибывания. % | T5: итого: | V5: Норма 3-7 года | W5: численность детей | Y5: Длит. Прибывания. % | Z5: итого: | AB5: численность детей | AD5: Длит. Прибывания. % | AE5: итого: | AG5: численность детей | AI5: Длит. Прибывания. % | AJ5: итого: | AL5: Общ Кол-во | AM5: Сумм Контр.
H6: дни пребыв | K6: Сумма | M6: дни пребыв | P6: Сумма | R6: дни пребыв | U6: Сумма | X6: дни пребыв | AA6: Сумма | AC6: дни пребыв | AF6: Сумма | AH6: дни пребыв | AK6: Сумма
C7: Мясопродукты | F7: 0.055 | V7: 0.0605
C8: Печень гов. Замороженая | D8: кг | E8: 210 | F8: 0.008 | G8: 24 | H8: 149 | I8: 100 | J8: =F8*G8*H8/100*I8 -> 28.608 | K8: =J8*E8 -> 6007.68 | L8: 53 | M8: 149 | N8: 111 | O8: =F8*L8*M8/100*N8 -> 70.12536 | P8: =O8*E8 -> 14726.3256 | Q8: 6 | R8: 149 | S8: 22 | T8: =F8*Q8*R8/100*S8 -> 1.57344 | U8: =T8*E8 -> 330.4224 | V8: 0.009 | W8: 270 | X8: 149 | Y8: 100 | Z8: =V8*W8*X8/100*Y8 -> 362.07 | AA8: =Z8*E8 -> 76034.7 | AB8: 0 | AC8: 149 | AD8: 111 | AE8: =V8*AB8*AC8/100*AD8 -> 0 | AF8: =AE8*E8 -> 0 | AG8: 22 | AH8: 149 | AI8: 22 | AJ8: =V8*AG8*AH8/100*AI8 -> 6.49044 | AK8: =AJ8*E8 -> 1362.9924 | AL8: =J8+O8+T8+Z8+AE8+AJ8 -> 468.86724 | AM8: =E8*AL8 -> 98462.1204
C9: Мясо Говядина б/к лопатка замор. | D9: кг | E9: 470 | F9: 0.027 | G9: =G8 -> 24 | H9: =H8 -> 149 | I9: =I8 -> 100 | J9: =F9*G9*H9/100*I9 -> 96.552 | K9: =J9*E9 -> 45379.44 | L9: =L8 -> 53 | M9: =M8 -> 149 | N9: =N8 -> 111 | O9: =F9*L9*M9/100*N9 -> 236.67309 | P9: =O9*E9 -> 111236.3523 | Q9: =Q8 -> 6 | R9: =R8 -> 149 | S9: =S8 -> 22 | T9: =F9*Q9*R9/100*S9 -> 5.31036 | U9: =T9*E9 -> 2495.8692 | V9: 0.0285 | W9: =W8 -> 270 | X9: =X8 -> 149 | Y9: =Y8 -> 100 | Z9: =V9*W9*X9/100*Y9 -> 1146.555 | AA9: =Z9*E9 -> 538880.85 | AB9: =AB8 -> 0 | AC9: =AC8 -> 149 | AD9: =AD8 -> 111 | AE9: =V9*AB9*AC9/100*AD9 -> 0 | AF9: =AE9*E9 -> 0 | AG9: =AG8 -> 22 | AH9: =AH8 -> 149 | AI9: =AI8 -> 22 | AJ9: =V9*AG9*AH9/100*AI9 -> 20.55306 | AK9: =AJ9*E9 -> 9659.9382 | AL9: =J9+O9+T9+Z9+AE9+AJ9 -> 1505.64351 | AM9: =E9*AL9 -> 707652.4497

Sheet 2
C1: 1 | E1: нажимаем на кнопку один сварачиваются сетлое и темное
C2: 2 | E2: нажимаем на кнопку два разварачивается светлое
C3: 3 | E3: нажимаем на кнопку три разварачивается светлотемное
C4: Наименование пищевого продукта или группы пищевых продуктов | D4: единица измерения | F4: Количество продуктов в зависимости от возраста детей
E5: Цена | F5: Норма 1-3 года | G5: численность детей | I5: Длит. Прибывания. % | J5: итого: | L5: численность детей | N5: Длит. Прибывания. % | O5: итого: | Q5: численность детей | S5: Длит. Прибывания. % | T5: итого: | V5: Норма 3-7 года | W5: численность детей | Y5: Длит. Прибывания. % | Z5: итого: | AB5: численность детей | AD5: Длит. Прибывания. % | AE5: итого: | AG5: численность детей | AI5: Длит. Прибывания. % | AJ5: итого: | AL5: Общ Кол-во | AM5: Сумм Контр.
H6: дни пребыв | K6: Сумма | M6: дни пребыв | P6: Сумма | R6: дни пребыв | U6: Сумма | X6: дни пребыв | AA6: Сумма | AC6: дни пребыв | AF6: Сумма | AH6: дни пребыв | AK6: Сумма
C7: Мясопродукты | F7: 0.055 | V7: 0.0605
C8: Печень гов. Замороженая | D8: кг | E8: 210 | F8: 0.008 | G8: 24 | H8: 149 | I8: 100 | J8: =F8*G8*H8/100*I8 -> 28.608 | K8: =J8*E8 -> 6007.68 | L8: 53 | M8: 149 | N8: 111 | O8: =F8*L8*M8/100*N8 -> 70.12536 | P8: =O8*E8 -> 14726.3256 | Q8: 6 | R8: 149 | S8: 22 | T8: =F8*Q8*R8/100*S8 -> 1.57344 | U8: =T8*E8 -> 330.4224 | V8: 0.009 | W8: 270 | X8: 149 | Y8: 100 | Z8: =V8*W8*X8/100*Y8 -> 362.07 | AA8: =Z8*E8 -> 76034.7 | AB8: 0 | AC8: 149 | AD8: 111 | AE8: =V8*AB8*AC8/100*AD8 -> 0 | AF8: =AE8*E8 -> 0 | AG8: 22 | AH8: 149 | AI8: 22 | AJ8: =V8*AG8*AH8/100*AI8 -> 6.49044 | AK8: =AJ8*E8 -> 1362.9924 | AL8: =J8+O8+T8+Z8+AE8+AJ8 -> 468.86724 | AM8: =E8*AL8 -> 98462.1204
C9: Мясо Говядина б/к лопатка замор. | D9: кг | E9: 470 | F9: 0.027 | G9: =G8 -> 24 | H9: =H8 -> 149 | I9: =I8 -> 100 | J9: =F9*G9*H9/100*I9 -> 96.552 | K9: =J9*E9 -> 45379.44 | L9: =L8 -> 53 | M9: =M8 -> 149 | N9: =N8 -> 111 | O9: =F9*L9*M9/100*N9 -> 236.67309 | P9: =O9*E9 -> 111236.3523 | Q9: =Q8 -> 6 | R9: =R8 -> 149 | S9: =S8 -> 22 | T9: =F9*Q9*R9/100*S9 -> 5.31036 | U9: =T9*E9 -> 2495.8692 | V9: 0.0285 | W9: =W8 -> 270 | X9: =X8 -> 149 | Y9: =Y8 -> 100 | Z9: =V9*W9*X9/100*Y9 -> 1146.555 | AA9: =Z9*E9 -> 538880.85 | AB9: =AB8 -> 0 | AC9: =AC8 -> 149 | AD9: =AD8 -> 111 | AE9: =V9*AB9*AC9/100*AD9 -> 0 | AF9: =AE9*E9 -> 0 | AG9: =AG8 -> 22 | AH9: =AH8 -> 149 | AI9: =AI8 -> 22 | AJ9: =V9*AG9*AH9/100*AI9 -> 20.55306 | AK9: =AJ9*E9 -> 9659.9382 | AL9: =J9+O9+T9+Z9+AE9+AJ9 -> 1505.64351 | AM9: =E9*AL9 -> 707652.4497
